bitfinex/quotes_ETHUSD_20250130
["timestamp","ask_amount","ask_price","bid_price","bid_amount"]
[1738251832527,6.83950024,3269.6,3268.6,0.7804]
[1738251832738,3.05897,3269.1,3268.7,0.55]
[1738251832939,3.05897,3269.1,3268.7,0.58413178]
[1738251833358,3.05912,3269.0,3268.7,0.58413178]
[1738251833862,2.84750024,3269.3,3268.7,0.03413178]
[1738251834175,3.0592,3268.9,3268.3,0.55]
[1738251834353,3.0592,3268.9,3268.8,0.03409156]
[1738251834534,3.0592,3268.9,3268.3,3.60969]
[1738251834739,3.0592,3268.9,3268.8,0.03409156]
[1738251834957,3.0592,3268.9,3268.3,3.60969]
[1738251835139,3.0592,3268.9,3268.8,0.0371908]
[1738251835342,3.0592,3268.9,3268.3,3.60969]
[1738251835555,3.0592,3268.9,3268.8,0.0371908]
[1738251835754,3.0592,3268.9,3268.3,3.60969]
[1738251835952,3.0592,3268.9,3268.8,0.0371908]
[1738251836264,3.0592,3268.9,3268.3,3.60969]
[1738251836508,3.0592,3268.9,3268.8,0.0371908]
[1738251836669,3.0592,3268.9,3268.3,3.60969]
[1738251836870,3.0592,3268.9,3268.8,0.0371908]
[1738251837474,3.0592,3268.9,3268.3,3.60969]
[1738251837634,3.0592,3268.9,3268.8,0.0371908]
[1738251838266,3.0592,3268.9,3268.3,3.60969]
[1738251838468,3.0592,3268.9,3268.8,0.03756539]
[1738251838630,3.0592,3268.9,3268.3,3.60969]
[1738251838829,3.0592,3268.9,3268.8,0.03756539]
[1738251839131,6.11842,3268.9,3268.3,0.55]
[1738251839346,3.0592,3268.9,3268.3,0.55]
[1738251839543,3.05897,3269.1,3268.5,0.55]
[1738251839747,3.61550024,3269.6,3268.6,0.7876]
[1738251840067,2.84750024,3269.6,3268.6,0.03770778]
[1738251840278,3.05904,3269.0,3268.4,3.05951]
[1738251840491,0.7803,3269.8,3269.0,0.55]
[1738251840492,3.05838,3269.7,3269.0,0.55]
[1738251840691,3.05838,3269.7,3269.2,0.55]
[1738251840843,3.05803,3270.1,3269.3,0.03714314]
[1738251841040,3.05811,3270.0,3269.5,1.3638]
[1738251841241,3.05829,3269.8,3269.5,1.3638]
[1738251841508,3.05811,3270.0,3269.7,0.55]
[1738251841641,3.05811,3270.0,3269.8,0.04026863]
[1738251841983,3.05811,3270.0,3269.6,0.55]
[1738251842181,3.05811,3270.0,3269.9,0.04019037]
[1738251842390,3.05811,3270.0,3269.6,0.55]
[1738251842691,3.05811,3270.0,3269.9,0.0365367]
[1738251842861,3.05824,3269.9,3269.6,0.55]
[1738251843593,3.05781,3270.4,3269.7,3.08894227]
[1738251843886,3.05775,3270.4,3270.0,0.55]
[1738251844054,3.0579,3270.3,3270.0,0.55]
[1738251844257,3.05801,3270.1,3269.6,0.755]
[1738251844464,3.05788,3270.3,3269.7,0.55]
[1738251844656,3.05763,3270.5,3269.9,0.55]
[1738251844886,3.05792,3270.2,3269.6,3.81346]
[1738251845067,3.05792,3270.2,3269.6,4.500668]
[1738251845685,3.05792,3270.2,3269.7,0.55]
[1738251846185,3.05792,3270.2,3269.7,3.60837]
[1738251846382,6.11552,3270.4,3269.7,3.60837]
[1738251846583,3.05773,3270.4,3269.7,0.55]
[1738251846885,3.05799,3270.2,3269.7,0.55]
[1738251847573,3.05773,3270.4,3269.9,0.55]
[1738251847999,3.05758,3270.6,3269.9,3.60818]
[1738251848199,3.0,3270.7,3270.2,0.55]
[1738251848712,3.0577,3270.5,3270.0,0.55]
[1738251849014,3.0,3270.7,3270.0,0.55]
[1738251849324,3.05801,3270.1,3269.4,0.7646]
[1738251849674,3.05801,3270.1,3269.6,0.55]
[1738251850285,3.05767,3270.5,3269.8,0.55]
[1738251850495,3.05771,3270.5,3269.9,0.55]
[1738251850792,3.05774,3270.4,3269.9,0.55]
[1738251851118,3.05765,3270.5,3269.9,0.55]
[1738251851422,3.05773,3270.4,3269.9,0.55]
[1738251852615,3.05807,3270.1,3269.9,0.55]
[1738251853026,3.05793,3270.2,3269.9,0.55]
[1738251853176,3.0581,3270.0,3269.9,0.55]
[1738251854010,3.05793,3270.2,3269.9,0.55]
[1738251854380,3.05783,3270.3,3269.9,0.55]
[1738251854576,3.05791,3270.2,3269.9,0.55]
[1738251854914,3.05785,3270.3,3269.9,0.55]
[1738251855224,3.05806,3270.1,3269.5,3.87209]
[1738251855433,3.05806,3270.1,3269.5,4.259299]
[1738251855639,3.05806,3270.1,3269.6,0.55]
[1738251855844,3.05776,3270.4,3269.6,0.55]
[1738251856133,3.05789,3270.3,3269.9,0.55]
[1738251856338,3.05789,3270.3,3269.8,0.55]
[1738251856905,6.11579,3270.3,3269.8,0.55]
[1738251857439,3.05789,3270.3,3269.8,0.55]
[1738251857740,3.05776,3270.4,3269.8,0.55]
[1738251858124,5.84750024,3270.8,3269.8,0.55]
[1738251858327,5.84750024,3270.8,3270.2,0.55]
[1738251858328,3.05761,3270.6,3270.2,0.55]
[1738251858528,3.05775,3270.4,3270.2,0.55]
[1738251858696,3.05782,3270.3,3270.2,0.55]
[1738251859111,3.05817,3270.0,3269.8,0.7853]
[1738251859544,6.11635,3270.0,3269.5,1.3093]
[1738251859730,3.05817,3270.0,3269.5,1.3093]
[1738251859927,3.05774,3270.4,3269.5,0.78988177]
[1738251860130,3.05791,3270.2,3269.7,0.55]
[1738251860543,3.0581,3270.0,3269.5,0.7593]
[1738251860750,3.0581,3270.0,3269.6,0.55]
[1738251860751,3.0582,3269.9,3269.6,0.55]
[1738251860914,3.0581,3270.0,3269.6,0.55]
[1738251861523,3.05809,3270.1,3269.6,0.55]
[1738251861729,3.05847,3269.6,3269.0,3.83371]
[1738251862034,3.05872,3269.4,3269.0,0.84152778]
[1738251862436,3.05891,3269.2,3269.1,0.55]
[1738251862636,3.05894,3269.1,3269.0,0.06682778]
[1738251862847,3.05894,3269.1,3268.7,0.7917]
[1738251863018,3.05894,3269.1,3269.0,0.06682778]
[1738251863220,3.05894,3269.1,3268.7,0.7917]
[1738251863460,3.05894,3269.1,3269.0,0.05728096]
[1738251863670,3.05913,3268.9,3268.3,1.43394394]
[1738251863961,3.05964,3268.4,3268.0,0.8085]
[1738251865644,3.0597,3268.3,3267.7,3.06017]
[1738251866285,3.0597,3268.3,3267.6,0.7767]
[1738251866286,2.84750024,3268.8,3267.6,0.7767]
[1738251866627,3.05922,3268.8,3267.7,3.06016]
[1738251866778,3.05973,3268.3,3267.6,3.83701]
[1738251867275,3.05973,3268.3,3267.7,0.55]
[1738251867451,3.05978,3268.2,3267.7,0.55]
[1738251867651,3.05973,3268.3,3267.7,0.55]
[1738251868047,3.05978,3268.2,3267.7,0.55]
[1738251868872,3.84008,3268.2,3267.7,0.55]
[1738251871795,3.84191,3268.5,3267.8,0.03059976]
[1738251871968,3.0597,3268.3,3267.7,0.55]
[1738251872155,3.05978,3268.2,3267.7,0.55]
[1738251872680,3.05932,3268.7,3268.2,0.55]
[1738251872863,1.0064,3268.9,3268.1,2.21044806]
[1738251873063,3.0,3268.7,3268.1,1.38014806]
[1738251873269,3.05978,3268.2,3268.1,1.38014806]
[1738251875496,2.84750024,3268.5,3268.2,0.55]
[1738251875497,3.05951,3268.5,3268.2,0.55]
[1738251875801,3.05933,3268.7,3268.2,0.55]
[1738251876265,3.05957,3268.5,3268.2,0.55]
[1738251877658,3.05957,3268.5,3268.1,2.14004806]
[1738251878000,3.05969,3268.3,3268.1,1.38014806]
[1738251878171,3.05926,3268.8,3268.2,0.55]
[1738251878496,3.05938,3268.7,3268.2,0.55]
[1738251878861,6.05904,3269.0,3268.6,0.55]
[1738251879057,3.05869,3269.4,3268.8,0.55]
[1738251879259,3.05851,3269.6,3269.0,0.55]
[1738251879489,3.05857,3269.5,3269.0,0.55]
[1738251879690,3.05875,3269.3,3269.1,0.03450401]
[1738251879863,3.05885,3269.2,3269.1,0.03450401]
[1738251880065,3.05875,3269.3,3268.6,0.55]
[1738251880275,3.05886,3269.2,3269.1,0.03431796]
[1738251880503,3.05886,3269.2,3268.6,3.60941]
[1738251880807,3.05906,3269.0,3268.6,0.55]
[1738251880955,3.05906,3269.0,3268.8,0.55]
[1738251881165,3.05913,3268.9,3268.8,0.55]
[1738251881509,3.05887,3269.2,3268.6,0.55]
[1738251881712,3.05867,3269.4,3268.6,0.55]
[1738251882006,3.05867,3269.4,3268.8,0.55]
[1738251882708,3.05883,3269.3,3268.8,0.55]
[1738251883110,3.0586,3269.5,3269.0,0.55]
[1738251883263,3.28237,3269.8,3269.0,0.55]
[1738251883264,3.05837,3269.8,3269.0,0.55]
[1738251883607,3.0581,3270.1,3269.5,0.7593]
[1738251883915,3.0581,3270.1,3269.6,0.55]
[1738251884058,1.0205,3270.2,3269.6,0.55]
[1738251884059,3.05826,3269.9,3269.6,0.55]
[1738251884264,3.05838,3269.7,3269.1,0.7686]
[1738251884763,3.7885,3269.6,3269.2,0.55]
[1738251884972,3.05857,3269.5,3269.2,0.55]
[1738251885206,3.05875,3269.3,3269.2,0.55]
[1738251885786,6.11721,3269.5,3269.2,0.55]
[1738251886100,3.05857,3269.5,3269.0,0.55]
[1738251887178,3.05867,3269.4,3269.0,0.55]
[1738251887393,3.05876,3269.3,3269.0,0.55]
[1738251887909,3.00876,3269.3,3269.0,0.55]
[1738251888113,3.00876,3269.3,3268.8,0.7698]
[1738251888673,3.00876,3269.3,3268.9,0.55]
[1738251889185,3.05894,3269.1,3268.9,0.55]
[1738251889513,3.05894,3269.1,3268.5,0.7774]
[1738251889724,3.05941,3268.6,3268.3,0.7774]
[1738251889948,3.791,3269.0,3267.9,0.7774]
[1738251890220,3.0595,3268.5,3268.1,0.8031]
[1738251890371,6.11909,3268.5,3268.1,0.8031]
[1738251890577,0.8004,3268.8,3268.2,0.03761018]
[1738251890884,3.05924,3268.8,3268.3,0.55]
[1738251891202,3.05924,3268.8,3268.4,0.03762386]
[1738251891371,3.05938,3268.7,3268.4,0.03762386]
[1738251891572,3.05938,3268.7,3268.2,0.55]
[1738251891821,3.05938,3268.7,3268.3,0.03769898]
[1738251892173,3.05938,3268.7,3268.2,0.55]
[1738251892373,3.05924,3268.8,3268.4,0.03451717]
[1738251892673,3.05924,3268.8,3268.3,0.03458244]
[1738251893015,3.05924,3268.8,3268.4,0.03451717]
[1738251893215,3.05947,3268.6,3268.4,0.03451717]
[1738251893418,3.05947,3268.6,3268.2,0.55]
[1738251893567,3.0593,3268.8,3268.5,0.03445189]
[1738251893773,3.0593,3268.8,3268.2,0.55]
[1738251894013,3.05956,3268.5,3268.3,0.03458244]
[1738251894318,0.8013,3269.2,3268.3,0.03458244]
[1738251894484,3.05923,3268.8,3268.2,3.60971]
[1738251894814,3.05923,3268.8,3268.4,0.55]
[1738251895116,3.224,3269.3,3268.5,6.90941]
[1738251895117,3.05877,3269.3,3268.5,6.90941]
[1738251895416,3.05877,3269.3,3268.6,0.55]
[1738251895915,3.05868,3269.4,3268.5,3.88459443]
[1738251895916,3.05887,3269.2,3268.8,0.55]
[1738251896413,0.0075,3269.4,3268.9,0.03442338]
[1738251896669,3.05903,3269.0,3268.9,0.03442338]
[1738251896820,3.05903,3269.0,3268.5,0.7905]
[1738251897031,3.05924,3268.8,3268.0,0.8192]
[1738251897191,3.05924,3268.8,3268.1,3.47831866]
[1738251897394,3.05924,3268.8,3268.2,0.55]
[1738251897811,3.05924,3268.8,3268.2,0.58059445]
[1738251898012,3.05924,3268.8,3268.2,0.58059447]
[1738251898187,3.05888,3269.2,3268.4,3.60951]
[1738251898387,3.05888,3269.2,3268.5,0.03059155]
[1738251898588,3.05869,3269.4,3268.6,3.60938]
[1738251898834,3.05883,3269.3,3268.6,0.55]
[1738251899038,3.05883,3269.3,3268.8,0.55]
[1738251899335,3.05883,3269.3,3268.9,0.03442338]
[1738251899488,3.05861,3269.5,3269.0,0.55]
[1738251899690,3.05852,3269.6,3269.0,0.55]
[1738251900000,3.05863,3269.5,3269.1,0.0341927]
[1738251900209,3.0,3269.7,3269.2,0.55]
[1738251900534,3.28216,3270.0,3269.4,0.55]
[1738251900691,3.05816,3270.0,3269.4,0.55]
[1738251900890,0.224,3270.2,3269.6,0.55]
[1738251901127,3.28194,3270.2,3269.6,0.55]
[1738251901441,3.05806,3270.1,3269.6,0.55]
[1738251901602,3.05812,3270.0,3269.5,0.55]
[1738251901788,3.05812,3270.0,3268.2,3.38227155]
[1738251901789,3.05893,3269.2,3268.8,0.7682]
[1738251901992,0.805,3269.1,3268.2,0.7682]
[1738251902216,0.805,3269.1,3267.2,2.84750024]
[1738251902217,3.05966,3268.4,3267.2,2.84750024]
[1738251902427,3.05966,3268.4,3267.7,3.83757]
[1738251902633,3.05942,3268.6,3267.8,3.06009]
[1738251902836,1.029,3269.1,3268.3,0.55]
[1738251902990,1.029,3269.1,3268.2,0.8098]
[1738251902991,0.224,3269.1,3268.6,0.55]
[1738251903197,4.46401112,3269.5,3268.8,0.55]
[1738251903429,6.05872,3269.4,3268.8,0.55]
[1738251903737,3.05868,3269.4,3268.8,0.55]
[1738251903904,1.0272,3269.5,3268.8,0.55]
[1738251904108,3.0595,3268.5,3267.8,3.0601]
[1738251904335,3.0595,3268.5,3267.8,3.753171]
[1738251904695,3.05915,3268.9,3268.1,1.3692]
[1738251905041,3.63390024,3269.1,3268.4,0.55]
[1738251905042,3.8454,3269.1,3268.4,0.55]
[1738251905240,8.35829,3269.9,3268.7,0.55]
[1738251905241,0.7864,3269.5,3268.7,0.55]
[1738251905440,0.224,3269.8,3269.0,3.88312]
[1738251905597,3.85803,3269.9,3269.1,0.55]
[1738251905799,3.85803,3269.9,3269.2,3.08939691]
[1738251905994,3.85803,3269.9,3269.3,0.55]
[1738251906199,0.8082,3270.3,3269.2,0.03058691]
[1738251906545,3.05806,3270.1,3269.5,0.55]
[1738251906745,3.05843,3269.7,3269.1,0.8068]
[1738251906942,2.84750024,3270.2,3269.2,0.55]
[1738251907115,3.05811,3270.0,3269.2,3.6088]
[1738251907515,3.05811,3270.0,3269.3,3.05875]
[1738251907709,3.05811,3270.0,3269.3,3.806185]
[1738251908101,3.05796,3270.2,3269.3,0.747435]
[1738251908329,3.05796,3270.2,3269.6,0.8228]
[1738251908733,3.05796,3270.2,3269.7,0.55]
[1738251909239,3.0,3270.3,3269.7,0.55]
[1738251909446,3.05766,3270.5,3269.7,3.96218095]
[1738251909758,0.224,3270.7,3270.0,3.60807]
[1738251910039,3.05748,3270.7,3270.0,0.55]
[1738251910241,3.05741,3270.8,3270.0,0.55]
[1738251910612,0.224,3270.7,3270.0,0.55]
[1738251910962,3.05751,3270.7,3270.0,0.55]
[1738251911103,3.05764,3270.5,3270.0,0.55]
[1738251911500,3.05783,3270.3,3270.0,0.55]
[1738251911702,6.11536,3270.5,3270.0,0.55]
[1738251911917,3.05764,3270.5,3270.0,0.55]
[1738251912113,3.05779,3270.4,3270.0,0.55]
[1738251912518,3.05779,3270.4,3269.7,3.05837]
[1738251912519,3.05779,3270.4,3269.7,0.811]
[1738251912733,3.05811,3270.0,3269.4,0.811]
[1738251912904,3.05844,3269.7,3269.1,0.811]
[1738251913105,3.05826,3269.9,3269.1,1.198003]
[1738251913607,3.05801,3270.1,3269.3,0.55]
[1738251913833,3.05801,3270.1,3269.3,3.60875]
[1738251914218,3.7744,3270.2,3269.5,0.55]
[1738251914417,3.9984,3270.2,3269.5,3.63908217]
[1738251914709,0.7514,3270.8,3270.1,0.55]
[1738251914906,3.05748,3270.7,3270.2,0.03057567]
[1738251915104,3.05748,3270.7,3270.1,0.55]
[1738251915757,6.05733,3270.9,3270.1,3.60798]
[1738251916024,6.05733,3270.9,3269.7,0.7726]
[1738251916025,3.05795,3270.2,3269.7,0.7726]
[1738251916276,3.05779,3270.4,3269.7,1.22269262]
[1738251916561,3.05807,3270.1,3269.7,0.7726]
[1738251917063,3.85607,3270.7,3269.8,0.55]
[1738251917222,3.85607,3270.7,3269.8,3.60821]
[1738251917425,3.05765,3270.5,3269.8,3.60821]
[1738251917625,3.05765,3270.5,3270.0,0.55]
[1738251917963,3.85607,3270.7,3270.0,3.60809]
[1738251918170,3.05747,3270.7,3270.0,3.60809]
[1738251918467,3.05747,3270.7,3270.0,0.55]
[1738251918651,3.05756,3270.6,3270.0,0.55]
[1738251919051,3.05771,3270.5,3269.8,0.55]
[1738251919225,3.05772,3270.4,3269.8,0.55]
[1738251919649,3.05756,3270.6,3269.8,0.55]
[1738251919852,3.05773,3270.4,3269.8,0.55]
[1738251920221,3.07150024,3270.8,3269.8,0.55]
[1738251920222,5.90489024,3270.8,3269.9,0.55]
[1738251920534,3.05739,3270.8,3270.1,0.55]
[1738251920735,3.05739,3270.8,3270.2,0.55]
[1738251921039,3.8558,3271.0,3270.2,1.3485]
[1738251921369,3.05731,3270.9,3270.4,0.55]
[1738251921677,6.11465,3270.9,3270.3,0.55]
[1738251921848,3.05752,3270.7,3270.3,0.55]
[1738251922055,3.05754,3270.6,3270.2,0.7985]
[1738251922236,3.05778,3270.4,3270.2,0.7985]
[1738251922771,3.05754,3270.6,3270.2,0.7985]
[1738251922956,3.05739,3270.8,3270.3,0.55]
[1738251923945,3.05746,3270.7,3270.3,0.55]
[1738251924147,3.05734,3270.9,3270.3,0.55]
[1738251924359,3.05736,3270.8,3270.3,0.55]
[1738251925574,2.84750024,3270.5,3269.2,0.62340651]
[1738251925869,3.05827,3269.9,3269.3,0.7517]
[1738251926454,3.05848,3269.6,3269.0,0.7517]
[1738251926656,3.05865,3269.5,3269.0,0.7517]
[1738251927065,3.05848,3269.6,3269.1,0.55]
[1738251927429,0.224,3270.0,3269.1,4.044969]
[1738251927636,3.05826,3269.9,3269.1,4.044969]
[1738251927873,3.05844,3269.7,3269.1,0.55]
[1738251928475,3.05823,3269.9,3269.1,0.55]
[1738251928629,3.05823,3269.9,3269.3,0.55]
[1738251929046,0.224,3270.0,3269.5,0.55]
[1738251929447,3.05802,3270.1,3269.5,0.55]
[1738251929648,3.05793,3270.2,3269.7,0.55]
[1738251929851,2.84750024,3270.5,3269.7,3.60833]
[1738251930081,3.05738,3270.8,3270.1,3.60795]
[1738251930251,3.05715,3271.1,3270.4,3.05772]
[1738251930468,3.05718,3271.0,3270.3,3.63837491]
[1738251930671,3.05718,3271.0,3270.3,0.58057491]
[1738251930983,0.9905,3271.3,3270.3,0.55]
[1738251931158,5.90492024,3270.8,3269.9,0.7707]
[1738251931354,4.05494,3271.3,3270.3,0.55]
[1738251931355,3.05723,3271.0,3270.3,0.55]
[1738251931583,3.05723,3271.0,3270.4,0.7707]
[1738251931783,3.05711,3271.1,3270.5,0.55]
[1738251931999,3.05689,3271.3,3270.5,0.55]
[1738251932198,0.8239,3271.7,3271.1,3.05698]
[1738251932369,3.05641,3271.9,3271.2,3.63753794]
[1738251932370,3.05633,3271.9,3271.2,3.63753794]
[1738251932567,3.0,3272.0,3271.4,0.55]
[1738251932766,6.05632,3272.0,3271.4,0.55]
[1738251933308,6.05632,3272.0,3271.3,3.82487]
[1738251933309,3.05632,3272.0,3271.3,3.82487]
[1738251933508,3.05632,3272.0,3271.3,3.85543501]
[1738251933802,3.05654,3271.7,3271.3,0.768]
[1738251934099,3.05685,3271.4,3270.9,0.768]
[1738251935603,3.05663,3271.6,3270.9,0.768]
[1738251936157,3.05683,3271.4,3270.9,0.768]
[1738251936355,3.05645,3271.8,3271.0,0.58056927]
[1738251936593,3.05624,3272.0,3271.2,0.7503]
[1738251936774,3.05624,3272.0,3271.4,3.05679]
[1738251938761,3.05587,3272.4,3271.6,0.8108]
[1738251939001,3.05581,3272.5,3271.8,3.05638]
[1738251939302,3.0075,3272.8,3271.6,0.8108]
[1738251939458,3.05629,3272.0,3271.6,0.8108]
[1738251940076,3.05607,3272.2,3271.6,0.8108]
[1738251940691,3.05586,3272.4,3271.7,0.55]
[1738251941067,3.05586,3272.4,3271.7,3.60649]
[1738251941265,3.05586,3272.4,3271.7,0.55]
[1738251941758,3.05586,3272.4,3271.8,3.05641]
[1738251942270,3.05568,3272.6,3271.8,3.05641]
[1738251942471,3.05568,3272.6,3271.9,0.55]
[1738251942777,3.05568,3272.6,3272.0,3.05623]
[1738251943315,3.05568,3272.6,3272.1,0.7619]
[1738251944011,3.05587,3272.4,3272.1,0.7619]
[1738251944596,3.0557,3272.6,3272.1,0.7619]
[1738251944916,3.05582,3272.5,3272.1,0.7619]
[1738251945315,3.0,3272.8,3272.1,0.7619]
[1738251945526,3.05593,3272.4,3272.1,0.7619]
[1738251945726,3.05571,3272.6,3272.1,0.7619]
[1738251945886,3.44846081,3275.2,3272.4,3.05579]
[1738251945887,3.85203,3273.3,3272.4,3.05579]
[1738251946075,3.85203,3273.3,3272.2,0.580559]
[1738251946076,3.05526,3273.1,3272.3,3.05587]
[1738251946281,3.05526,3273.1,3272.4,0.58055471]
[1738251946574,3.05548,3272.9,3272.4,0.55]
[1738251946780,3.05526,3273.1,3272.4,0.55]
[1738251946979,3.05526,3273.1,3272.5,0.8225545]
[1738251947205,3.05526,3273.1,3272.5,3.8783145]
[1738251947423,3.05485,3273.5,3272.7,3.05557]
[1738251947583,3.05492,3273.4,3272.8,0.03055154]
[1738251947785,3.05504,3273.3,3272.8,0.03055154]
[1738251948001,3.05504,3273.3,3272.7,3.05557]
[1738251948002,4.0309,3273.7,3272.5,1.54042345]
[1738251948199,3.0553,3273.0,3272.5,0.792]
[1738251948515,3.05543,3272.9,3272.5,0.792]
[1738251949131,3.05514,3273.2,3272.5,0.792]
[1738251949402,3.05542,3272.9,3272.5,0.792]
[1738251949745,3.05587,3272.4,3272.1,0.7792]
[1738251950101,3.05598,3272.3,3272.1,0.7792]
[1738251950906,3.05623,3272.1,3271.5,0.7792]
[1738251951424,3.05623,3272.1,3271.5,1.22398933]
[1738251951592,3.05634,3271.9,3271.5,0.7792]
[1738251951796,3.05643,3271.8,3271.5,0.7792]
[1738251952037,3.05651,3271.7,3271.5,0.7792]
[1738251952244,3.05634,3271.9,3271.5,0.7792]
[1738251953161,3.05615,3272.1,3271.5,0.7792]
[1738251953325,3.05615,3272.1,3271.5,0.80976422]
[1738251953530,3.05599,3272.3,3271.7,3.05649]
[1738251953965,3.05578,3272.5,3271.7,3.05649]
[1738251954125,3.05578,3272.5,3271.9,0.8041]
[1738251954323,3.05578,3272.5,3272.0,0.03056092]
[1738251954529,3.05578,3272.5,3271.9,3.86035]
[1738251954758,3.05544,3272.9,3272.3,3.05593]
[1738251955057,3.05496,3273.4,3272.7,0.55]
[1738251955369,6.10959,3273.6,3272.7,3.0555]
[1738251955664,3.05496,3273.4,3272.9,0.55]
[1738251955955,3.05508,3273.3,3272.6,3.82874]
[1738251956259,3.05508,3273.3,3272.8,0.55]
[1738251956860,3.05496,3273.4,3272.7,0.688447]
[1738251957062,3.05503,3273.3,3272.7,3.743997]
[1738251957574,3.0549,3273.5,3272.9,3.60535]
[1738251957729,3.0549,3273.5,3272.9,0.55]
[1738251958066,3.223,3273.8,3272.9,0.4293997]
[1738251958217,3.05495,3273.4,3272.9,0.4293997]
[1738251958413,3.05477,3273.6,3273.0,3.05529]
[1738251958656,3.05466,3273.7,3273.1,3.05512]
[1738251958860,3.05469,3273.7,3273.1,3.05515]
[1738251959061,3.05459,3273.8,3273.2,3.439125]
[1738251959555,3.05459,3273.8,3273.2,0.384015]
[1738251959923,3.05465,3273.7,3273.2,0.384015]
[1738251960645,3.8116,3274.0,3273.2,0.384015]
[1738251961029,0.7572,3274.0,3273.2,0.384015]
[1738251961214,3.05464,3273.8,3273.3,0.40649552]
[1738251962268,3.0547,3273.7,3273.3,0.40649552]
[1738251962420,3.0547,3273.7,3273.2,0.55]
[1738251962918,3.0547,3273.7,3273.1,0.6257702]
[1738251963364,3.0548,3273.6,3273.1,0.6257702]
[1738251963567,3.05486,3273.5,3273.1,0.6257702]
[1738251963769,3.0547,3273.7,3273.1,1.07238522]
[1738251964063,3.05475,3273.6,3273.1,1.07238522]
[1738251964273,0.7572,3274.0,3272.3,3.05591]
[1738251964274,3.05512,3273.2,3272.5,3.05573]
[1738251964497,3.05512,3273.2,3272.7,0.59763745]
[1738251964694,6.05488,3273.5,3272.8,3.60543]
[1738251965346,0.223,3273.7,3272.8,3.60543]
[1738251965347,3.2777,3273.7,3273.1,3.05519]
[1738251965549,0.223,3273.7,3273.2,1.359]
[1738251965799,3.05457,3273.8,3273.3,0.44142]
[1738251966464,3.44846081,3274.2,3273.3,0.44142]
[1738251966668,6.29012,3274.8,3273.8,3.05449]
[1738251966853,3.05386,3274.6,3274.0,0.7755]
[1738251967049,5.47562,3274.8,3274.1,0.55]
[1738251967253,3.05378,3274.7,3274.1,0.55]
[1738251967798,3.05401,3274.4,3274.0,0.7755]
[1738251968111,3.05427,3274.1,3273.5,0.7755]
[1738251968252,3.05441,3274.0,3273.6,0.38304]
[1738251968451,3.05458,3273.8,3273.5,0.7755]
[1738251968685,6.10846,3274.2,3273.5,3.83032]
[1738251968867,6.10846,3274.2,3273.0,1.42005437]
[1738251968868,0.0075,3274.1,3273.0,1.42005437]
[1738251969067,3.05476,3273.6,3273.0,1.42005437]
[1738251969277,3.05504,3273.3,3273.0,0.8125]
[1738251969477,3.05529,3273.1,3272.6,1.35812427]
[1738251969998,1.0419,3273.6,3272.6,1.20198543]
[1738251969999,3.44846081,3273.4,3272.6,1.20198543]
[1738251970157,3.44846081,3273.4,3272.1,3.05611]
[1738251970158,3.05558,3272.7,3272.3,0.7606]
[1738251970358,3.05533,3273.0,3272.3,0.7606]
[1738251970606,3.05577,3272.5,3272.3,0.7606]
[1738251971215,0.0075,3272.5,3271.6,0.7519]
[1738251971357,0.0075,3272.5,3270.3,3.05776]
[1738251971358,3.05651,3271.7,3271.2,0.7519]
[1738251971705,6.50446081,3272.3,3271.2,1.132801]
[1738251971706,3.05651,3271.8,3271.2,1.132801]
[1738251971902,0.0075,3271.9,3270.7,0.7506]
[1738251972211,0.0075,3271.9,3270.8,0.6199085]
[1738251972212,3.05697,3271.3,3270.8,0.6199085]
[1738251972755,3.05667,3271.6,3270.8,0.6199085]
[1738251972954,3.05642,3271.8,3271.2,3.05697]
[1738251973594,3.05667,3271.6,3270.8,3.6771885]
[1738251973771,3.05691,3271.3,3270.9,0.74851585]
[1738251973986,3.05671,3271.5,3270.9,3.80573585]
[1738251974196,3.05645,3271.8,3271.1,3.05705]
[1738251974393,3.05645,3271.8,3270.9,3.80573585]
[1738251974592,3.05676,3271.5,3270.9,3.80573585]
[1738251974801,3.05657,3271.7,3271.0,3.05714]
[1738251974997,3.223,3271.9,3271.4,3.05679]
[1738251975181,3.0,3271.9,3271.5,3.05667]
[1738251975375,3.85523,3272.3,3271.6,3.05655]
[1738251975376,0.7992,3272.3,3271.6,3.05655]
[1738251975563,0.223,3272.2,3271.8,3.0564]
[1738251975775,0.223,3272.4,3271.9,3.05629]
[1738251976819,0.223,3272.4,3271.9,3.05626]
[1738251977189,4.05189,3272.7,3271.9,3.05626]
[1738251977685,3.0,3272.5,3271.5,0.7757]
[1738251978019,3.05634,3271.9,3271.3,3.05682]
[1738251978187,3.05673,3271.5,3270.8,0.62004686]
[1738251978389,0.0075,3271.7,3270.4,0.7919]
[1738251978390,0.0075,3271.3,3270.4,0.7919]
[1738251978617,3.05728,3270.9,3270.4,0.7919]
[1738251978823,3.05698,3271.2,3270.5,3.05757]
[1738251979125,6.72829081,3271.4,3270.7,3.05743]
[1738251979481,3.27979,3271.4,3270.8,3.05735]
[1738251979631,0.223,3271.7,3271.2,3.05691]
[1738251979831,0.223,3271.7,3271.2,3.87051]
[1738251980038,0.223,3271.7,3271.2,4.563274]
[1738251980536,3.05595,3272.4,3271.7,3.05643]